[Event "10th Sharjah Cup Women 2020"]
[Site "Sharjah"]
[Date "2020.01.04"]
[Round "1.1"]
[White "Fatima, Saif Al-Ali"]
[Black "Bulmaga, Irina"]
[Result "0-1"]
[ECO "B93"]
[WhiteElo "1339"]
[BlackElo "2446"]
[Annotator "ChessBase"]
[PlyCount "120"]
[EventDate "2020.01.04"]
[EventType "swiss"]
[EventCountry "UAE"]
[SourceTitle "playchess.com"]
[Source "ChessBase"]
[SourceQuality "1"]
[TimeControl "5400+30"]

1. e4 {[%emt 0:00:00]} c5 {[%emt 0:00:00]} 2. Nf3 {[%emt 0:00:00]} d6 {[%emt 0:00:00]} 3. d4 {[%emt 0:00:05]} cxd4 {[%emt 0:00:00]} 4. Nxd4 {[%emt 0:00:07]} Nf6 {[%emt 0:00:01]} 5. Nc3 {[%emt 0:00:21]} a6 {[%emt 0:00:06]} 6. f4 {[%emt 0:00:30]} e5 {[%emt 0:01:11]} 7. Nf3 {[%emt 0:01:23]} Nc6 {[%emt 0:00:16]} 8. Bc4 {[%emt 0:05:27]} Be7 {[%emt 0:00:21]} 9. O-O {[%emt 0:00:23]} O-O {[%emt 0:00:15]} 10. a3 {[%emt 0:09:43]} exf4 {[%emt 0:04:48]} 11. Bxf4 {[%emt 0:00:46]} Ng4 {[%emt 0:01:19]} 12. Nd5 {[%emt 0:02:57]} Nge5 {[%emt 0:01:21]} 13. Be2 {[%emt 0:07:27]} Be6 {[%emt 0:00:57]} 14. Qd2 {[%emt 0:05:18]} Nxf3+ {[%emt 0:02:01]} 15. Bxf3 {[%emt 0:00:33]} Ne5 {[%emt 0:02:12]} 16. Nxe7+ {[%emt 0:01:25]} Qxe7 {[%emt 0:00:03]} 17. Rad1 {[%emt 0:01:31]} Rfd8 {[%emt 0:00:26]} 18. Qb4 {[%emt 0:06:59]} Qc7 {[%emt 0:09:15]} 19. Rd2 {[%emt 0:09:38]} Nc4 {[%emt 0:09:36]} 20. Rd4 {[%emt 0:04:45]} a5 {[%emt 0:02:44]} 21. Qc3 {[%emt 0:00:35]} Qb6 {[%emt 0:01:34]} 22. Kh1 {[%emt 0:04:14]} Rac8 {[%emt 0:00:38]} 23. b3 {[%emt 0:02:58]} Nxa3 {[%emt 0:00:33]} 24. Qd3 {[%emt 0:00:17]} Nxc2 {[%emt 0:01:24]} 25. Rxd6 {[%emt 0:00:23]} Rxd6 {[%emt 0:00:10]} 26. Qxd6 {[%emt 0:00:20]} Qxd6 {[%emt 0:00:07]} 27. Bxd6 {[%emt 0:00:07]} Bxb3 {[%emt 0:00:22]} 28. Rb1 {[%emt 0:00:54]} a4 {[%emt 0:00:19]} 29. Bd1 {[%emt 0:00:31]} Rc6 {[%emt 0:02:28]} 30. Bxc2 {[%emt 0:01:20]} Rxd6 {[%emt 0:01:24]} 31. Bxb3 {[%emt 0:00:17]} axb3 {[%emt 0:00:07]} 32. Kg1 {[%emt 0:00:09]} Rd3 {[%emt 0:00:16]} 33. Kf1 {[%emt 0:00:20]} Kf8 {[%emt 0:00:04]} 34. Ke2 {[%emt 0:00:12]} Rc3 {[%emt 0:00:03]} 35. Rb2 {[%emt 0:00:50]} Rc2+ {[%emt 0:00:09]} 36. Rxc2 {[%emt 0:00:08]} bxc2 {[%emt 0:00:04]} 37. Kd2 {[%emt 0:00:07]} Ke7 {[%emt 0:00:04]} 38. Kxc2 {[%emt 0:00:07]} Kd6 {[%emt 0:00:05]} 39. Kd3 {[%emt 0:00:12]} Ke5 {[%emt 0:00:06]} 40. Ke3 {[%emt 0:00:17]} b5 {[%emt 0:00:03]} 41. Kd3 {[%emt 0:00:12]} h5 {[%emt 0:00:08]} 42. h3 {[%emt 0:00:15]} b4 {[%emt 0:00:11]} 43. Kc4 {[%emt 0:00:05]} Kxe4 {[%emt 0:00:06]} 44. Kxb4 {[%emt 0:00:07]} Kf4 {[%emt 0:00:08]} 45. Kc4 {[%emt 0:00:08]} Kg3 {[%emt 0:00:04]} 46. Kd4 {[%emt 0:00:07]} Kxg2 {[%emt 0:00:07]} 47. Ke5 {[%emt 0:00:06]} Kxh3 {[%emt 0:00:05]} 48. Kf5 {[%emt 0:00:08]} h4 {[%emt 0:00:05]} 49. Kf4 {[%emt 0:00:17]} Kg2 {[%emt 0:00:05]} 50. Kg4 {[%emt 0:00:11]} h3 {[%emt 0:00:05]} 51. Kf4 {[%emt 0:00:09]} h2 {[%emt 0:00:05]} 52. Ke5 {[%emt 0:00:07]} h1=Q {[%emt 0:00:07]} 53. Kd6 {[%emt 0:00:07]} f5 {[%emt 0:00:06]} 54. Kc7 {[%emt 0:00:09]} f4 {[%emt 0:00:06]} 55. Kb6 {[%emt 0:00:06]} Qc1 {[%emt 0:00:06]} 56. Ka5 {[%emt 0:00:06]} Qb2 {[%emt 0:00:05]} 57. Ka4 {[%emt 0:00:12]} f3 {[%emt 0:00:05]} 58. Ka5 {[%emt 0:00:09]} f2 {[%emt 0:00:04]} 59. Ka6 {[%emt 0:00:08]} f1=Q+ {[%emt 0:00:07]} 60. Ka5 {[%emt 0:00:11]} Qfb5# {[%emt 0:00:07]} 0-1

[Event "10th Sharjah Cup Women 2020"]
[Site "Sharjah"]
[Date "2020.01.04"]
[Round "1.4"]
[White "Assaubayeva, Bibisara"]
[Black "Khalil, Reem"]
[Result "1-0"]
[ECO "A41"]
[WhiteElo "2375"]
[BlackElo "1295"]
[Annotator "ChessBase"]
[PlyCount "75"]
[EventDate "2020.01.04"]
[EventType "swiss"]
[EventCountry "UAE"]
[SourceTitle "playchess.com"]
[Source "ChessBase"]
[SourceQuality "1"]
[TimeControl "5400+30"]

1. d4 {[%emt 0:00:00]} d6 {[%emt 0:00:00]} 2. e4 {[%emt 0:00:04]} Nf6 {[%emt 0:00:00]} 3. Bd3 {[%emt 0:01:11]} e5 {[%emt 0:00:22]} 4. Nf3 {[%emt 0:01:08]} Nbd7 {[%emt 0:00:15]} 5. c3 {[%emt 0:00:51]} Be7 {[%emt 0:00:11]} 6. O-O {[%emt 0:00:26]} O-O {[%emt 0:00:25]} 7. Bg5 {[%emt 0:02:00]} h6 {[%emt 0:01:53]} 8. Bh4 {[%emt 0:00:38]} Nh7 {[%emt 0:01:51]} 9. Bg3 {[%emt 0:00:48]} Ng5 {[%emt 0:01:42]} 10. Nbd2 {[%emt 0:00:13]} Nxf3+ {[%emt 0:00:44]} 11. Nxf3 {[%emt 0:00:02]} Bf6 {[%emt 0:01:23]} 12. Re1 {[%emt 0:01:17]} Re8 {[%emt 0:01:26]} 13. Qc2 {[%emt 0:02:15]} Nf8 {[%emt 0:04:53]} 14. h3 {[%emt 0:01:44]} Nh7 {[%emt 0:02:36]} 15. Rad1 {[%emt 0:02:55]} Ng5 {[%emt 0:02:53]} 16. dxe5 {[%emt 0:06:48]} Nxf3+ {[%emt 0:03:18]} 17. gxf3 {[%emt 0:00:02]} Bxe5 {[%emt 0:00:25]} 18. f4 {[%emt 0:00:06]} Bf6 {[%emt 0:00:48]} 19. e5 {[%emt 0:02:15]} Bh4 {[%emt 0:04:59]} 20. Bf1 {[%emt 0:06:34]} Bxg3 {[%emt 0:06:43]} 21. fxg3 {[%emt 0:00:02]} g6 {[%emt 0:06:14]} 22. Qf2 {[%emt 0:02:10]} d5 {[%emt 0:07:47]} 23. c4 {[%emt 0:01:32]} c6 {[%emt 0:02:00]} 24. Bg2 {[%emt 0:00:16]} Qa5 {[%emt 0:03:56]} 25. cxd5 {[%emt 0:00:13]} cxd5 {[%emt 0:01:26]} 26. a3 {[%emt 0:00:24]} Be6 {[%emt 0:00:47]} 27. g4 {[%emt 0:00:13]} Rad8 {[%emt 0:16:35]} 28. Rd4 {[%emt 0:00:58]} Rf8 {[%emt 0:06:59]} 29. b4 {[%emt 0:03:32]} Qb5 {[%emt 0:02:22]} 30. f5 {[%emt 0:00:22]} Bc8 {[%emt 0:04:03]} 31. Red1 {[%emt 0:00:28]} Rde8 {[%emt 0:07:30]} 32. Rxd5 {[%emt 0:03:52]} Qa4 {[%emt 0:00:27]} 33. R1d3 {[%emt 0:03:18]} b6 {[%emt 0:00:41]} 34. Rd6 {[%emt 0:02:30]} Rxe5 {[%emt 0:03:33]} 35. Bc6 {[%emt 0:01:29]} Qa6 {[%emt 0:01:31]} 36. fxg6 {[%emt 0:00:22]} Be6 {[%emt 0:00:56]} 37. Qf6 {[%emt 0:04:17]} Re2 {[%emt 0:01:25]} 38. g7 {[%emt 0:00:34]} 1-0

[Event "10th Sharjah Cup Women 2020"]
[Site "Sharjah"]
[Date "2020.01.04"]
[Round "1.5"]
[White "Al Ghafri, Alanoud"]
[Black "Gong, Qianyun"]
[Result "0-1"]
[ECO "E15"]
[WhiteElo "1257"]
[BlackElo "2371"]
[Annotator "ChessBase"]
[PlyCount "88"]
[EventDate "2020.01.04"]
[EventType "swiss"]
[EventCountry "UAE"]
[SourceTitle "playchess.com"]
[Source "ChessBase"]
[SourceQuality "1"]
[TimeControl "5400+30"]

1. d4 {[%emt 0:00:00]} Nf6 {[%emt 0:00:00]} 2. c4 {[%emt 0:00:00]} e6 {[%emt 0:01:14]} 3. Nf3 {[%emt 0:00:19]} b6 {[%emt 0:00:11]} 4. g3 {[%emt 0:04:50]} Bb7 {[%emt 0:00:10]} 5. Bg2 {[%emt 0:00:57]} g6 {[%emt 0:00:44]} 6. O-O {[%emt 0:01:05]} Bg7 {[%emt 0:02:07]} 7. Nc3 {[%emt 0:02:21]} Ne4 {[%emt 0:01:24]} 8. e3 {[%emt 0:09:33]} Nxc3 {[%emt 0:06:13]} 9. bxc3 {[%emt 0:00:26]} d6 {[%emt 0:00:52]} 10. Qc2 {[%emt 0:05:46]} O-O {[%emt 0:03:32]} 11. e4 {[%emt 0:06:23]} Nc6 {[%emt 0:04:13]} 12. d5 {[%emt 0:11:04]} Na5 {[%emt 0:01:25]} 13. Nd2 {[%emt 0:03:31]} Ba6 {[%emt 0:04:42]} 14. Re1 {[%emt 0:07:39]} Nxc4 {[%emt 0:05:47]} 15. Nxc4 {[%emt 0:00:28]} Bxc4 {[%emt 0:00:04]} 16. Bd2 {[%emt 0:05:35]} Qd7 {[%emt 0:01:06]} 17. Rab1 {[%emt 0:01:40]} a5 {[%emt 0:00:21]} 18. Bf1 {[%emt 0:01:56]} exd5 {[%emt 0:00:28]} 19. Bxc4 {[%emt 0:01:35]} dxc4 {[%emt 0:00:03]} 20. Qb2 {[%emt 0:05:57]} Rae8 {[%emt 0:00:24]} 21. Qb5 {[%emt 0:02:07]} Qxb5 {[%emt 0:00:19]} 22. Rxb5 {[%emt 0:00:06]} f5 {[%emt 0:00:05]} 23. exf5 {[%emt 0:00:55]} Rxe1+ {[%emt 0:00:04]} 24. Bxe1 {[%emt 0:00:20]} Rxf5 {[%emt 0:00:04]} 25. Rxf5 {[%emt 0:01:17]} gxf5 {[%emt 0:00:03]} 26. Kg2 {[%emt 0:00:35]} b5 {[%emt 0:00:04]} 27. Kf3 {[%emt 0:00:35]} Kf7 {[%emt 0:00:04]} 28. Ke2 {[%emt 0:00:37]} c5 {[%emt 0:00:09]} 29. Kd1 {[%emt 0:00:24]} b4 {[%emt 0:00:20]} 30. Kc2 {[%emt 0:00:26]} Ke6 {[%emt 0:00:21]} 31. f3 {[%emt 0:00:45]} d5 {[%emt 0:00:16]} 32. Kb2 {[%emt 0:00:46]} d4 {[%emt 0:00:11]} 33. Kc2 {[%emt 0:03:45]} d3+ {[%emt 0:00:21]} 34. Kb2 {[%emt 0:00:42]} bxc3+ {[%emt 0:00:06]} 35. Bxc3 {[%emt 0:00:14]} d2 {[%emt 0:00:07]} 36. Kc2 {[%emt 0:01:02]} Bxc3 {[%emt 0:00:05]} 37. h3 {[%emt 0:00:31]} Kd5 {[%emt 0:00:15]} 38. g4 {[%emt 0:00:42]} fxg4 {[%emt 0:00:05]} 39. fxg4 {[%emt 0:00:56]} Kd4 {[%emt 0:00:09]} 40. h4 {[%emt 0:00:19]} Ke3 {[%emt 0:00:05]} 41. Kd1 {[%emt 0:00:26]} Kd3 {[%emt 0:00:10]} 42. g5 {[%emt 0:00:13]} Bd4 {[%emt 0:00:08]} 43. h5 {[%emt 0:00:34]} c3 {[%emt 0:00:06]} 44. a3 {[%emt 0:00:32]} c2# {[%emt 0:00:05]} 0-1

[Event "10th Sharjah Cup Women 2020"]
[Site "Sharjah"]
[Date "2020.01.04"]
[Round "1.8"]
[White "Radeva, Viktoria"]
[Black "Tower, Nora"]
[Result "1-0"]
[ECO "B06"]
[WhiteElo "2338"]
[BlackElo "1203"]
[Annotator "ChessBase"]
[PlyCount "69"]
[EventDate "2020.01.04"]
[EventType "swiss"]
[EventCountry "UAE"]
[SourceTitle "playchess.com"]
[Source "ChessBase"]
[SourceQuality "1"]
[TimeControl "5400+30"]

1. e4 {[%emt 0:00:00]} g6 {[%emt 0:00:00]} 2. d4 {[%emt 0:00:00]} Bg7 {[%emt 0:00:00]} 3. Nc3 {[%emt 0:00:00]} d6 {[%emt 0:00:02]} 4. g3 {[%emt 0:00:12]} Nf6 {[%emt 0:00:34]} 5. Bg2 {[%emt 0:00:13]} O-O {[%emt 0:00:44]} 6. Nge2 {[%emt 0:00:17]} Re8 {[%emt 0:01:48]} 7. O-O {[%emt 0:00:50]} Nbd7 {[%emt 0:01:31]} 8. h3 {[%emt 0:01:14]} e5 {[%emt 0:01:47]} 9. d5 {[%emt 0:01:44]} b6 {[%emt 0:04:49]} 10. g4 {[%emt 0:04:18]} a5 {[%emt 0:03:39]} 11. Ng3 {[%emt 0:01:54]} Nc5 {[%emt 0:09:12]} 12. Be3 {[%emt 0:04:19]} Bb7 {[%emt 0:05:56]} 13. Qd2 {[%emt 0:02:37]} c6 {[%emt 0:04:31]} 14. g5 {[%emt 0:03:25]} Nfd7 {[%emt 0:01:20]} 15. dxc6 {[%emt 0:00:22]} Bxc6 {[%emt 0:00:25]} 16. Qxd6 {[%emt 0:00:32]} Bb7 {[%emt 0:03:21]} 17. Rfd1 {[%emt 0:03:38]} Re7 {[%emt 0:00:33]} 18. h4 {[%emt 0:05:44]} Rc8 {[%emt 0:03:47]} 19. Bh3 {[%emt 0:01:30]} Rc6 {[%emt 0:03:46]} 20. Qd2 {[%emt 0:03:47]} Qc7 {[%emt 0:02:29]} 21. Nd5 {[%emt 0:00:54]} Qd6 {[%emt 0:03:25]} 22. Nxe7+ {[%emt 0:00:13]} Qxe7 {[%emt 0:00:12]} 23. Bxd7 {[%emt 0:00:08]} Rc7 {[%emt 0:00:46]} 24. Bh3 {[%emt 0:01:00]} Nxe4 {[%emt 0:02:16]} 25. Qd8+ {[%emt 0:00:31]} Qxd8 {[%emt 0:00:23]} 26. Rxd8+ {[%emt 0:00:04]} Bf8 {[%emt 0:00:07]} 27. Nxe4 {[%emt 0:00:17]} Bxe4 {[%emt 0:00:11]} 28. c3 {[%emt 0:00:16]} Kg7 {[%emt 0:00:31]} 29. Rad1 {[%emt 0:00:38]} Bc6 {[%emt 0:00:26]} 30. Rb8 {[%emt 0:00:48]} b5 {[%emt 0:00:15]} 31. Rdd8 {[%emt 0:00:20]} f6 {[%emt 0:01:23]} 32. Rxf8 {[%emt 0:00:07]} fxg5 {[%emt 0:00:24]} 33. Rg8+ {[%emt 0:00:12]} Kf7 {[%emt 0:00:21]} 34. Rbf8+ {[%emt 0:00:05]} Ke7 {[%emt 0:00:16]} 35. Bc5# {[%emt 0:00:04]} 1-0

[Event "10th Sharjah Cup Women 2020"]
[Site "Sharjah"]
[Date "2020.01.04"]
[Round "1.13"]
[White "Mission, Cheryll Rosales"]
[Black "Abdulla, Khayala"]
[Result "0-1"]
[ECO "A46"]
[WhiteElo "1135"]
[BlackElo "2275"]
[Annotator "ChessBase"]
[PlyCount "50"]
[EventDate "2020.01.04"]
[EventType "swiss"]
[EventCountry "UAE"]
[SourceTitle "playchess.com"]
[Source "ChessBase"]
[SourceQuality "1"]
[TimeControl "5400+30"]

1. d4 {[%emt 0:00:00]} Nf6 {[%emt 0:00:00]} 2. Nf3 {[%emt 0:00:00]} e6 {[%emt 0:00:00]} 3. a3 {[%emt 0:00:19]} d5 {[%emt 0:00:10]} 4. Bg5 {[%emt 0:00:12]} c5 {[%emt 0:00:53]} 5. c4 {[%emt 0:00:27]} cxd4 {[%emt 0:04:15]} 6. Nxd4 {[%emt 0:01:05]} Be7 {[%emt 0:00:52]} 7. e3 {[%emt 0:00:26]} dxc4 {[%emt 0:00:28]} 8. Bxc4 {[%emt 0:00:30]} Qa5+ {[%emt 0:00:29]} 9. Nc3 {[%emt 0:00:28]} Qxg5 {[%emt 0:00:32]} 10. O-O {[%emt 0:00:59]} O-O {[%emt 0:00:25]} 11. Nf3 {[%emt 0:00:09]} Qc5 {[%emt 0:00:30]} 12. Ba2 {[%emt 0:00:12]} Nc6 {[%emt 0:00:36]} 13. Rc1 {[%emt 0:00:32]} Qh5 {[%emt 0:00:58]} 14. Ne2 {[%emt 0:00:32]} Ne5 {[%emt 0:01:48]} 15. Ng3 {[%emt 0:01:37]} Nxf3+ {[%emt 0:00:17]} 16. gxf3 {[%emt 0:00:08]} Qh3 {[%emt 0:01:02]} 17. Kh1 {[%emt 0:00:45]} Rd8 {[%emt 0:00:39]} 18. Qb3 {[%emt 0:00:16]} h5 {[%emt 0:03:33]} 19. Bb1 {[%emt 0:01:19]} h4 {[%emt 0:00:45]} 20. Rg1 {[%emt 0:01:36]} Bd6 {[%emt 0:03:39]} 21. f4 {[%emt 0:00:58]} b6 {[%emt 0:02:08]} 22. f3 {[%emt 0:02:02]} Bb7 {[%emt 0:00:41]} 23. Rcf1 {[%emt 0:03:09]} hxg3 {[%emt 0:00:20]} 24. Rxg3 {[%emt 0:00:11]} Qxf1+ {[%emt 0:00:09]} 25. Rg1 {[%emt 0:01:10]} Bxf3# {[%emt 0:00:11]} 0-1

[Event "10th Sharjah Cup Women 2020"]
[Site "Sharjah"]
[Date "2020.01.04"]
[Round "1.14"]
[White "Kubicka, Anna"]
[Black "Alghala Ali, Alali"]
[Result "1/2-1/2"]
[ECO "B01"]
[WhiteElo "2258"]
[BlackElo "1125"]
[Annotator "ChessBase"]
[PlyCount "83"]
[EventDate "2020.01.04"]
[EventType "swiss"]
[EventCountry "UAE"]
[SourceTitle "playchess.com"]
[Source "ChessBase"]
[SourceQuality "1"]
[TimeControl "5400+30"]

1. e4 {[%emt 0:00:00]} d5 {[%emt 0:00:00]} 2. exd5 {[%emt 0:00:00]} Nf6 {[%emt 0:00:00]} 3. Bb5+ {[%emt 0:00:00]} Bd7 {[%emt 0:00:00]} 4. Bc4 {[%emt 0:00:07]} Bg4 {[%emt 0:00:50]} 5. f3 {[%emt 0:00:06]} Bc8 {[%emt 0:00:23]} 6. Nc3 {[%emt 0:00:16]} c6 {[%emt 0:12:44]} 7. dxc6 {[%emt 0:00:25]} Nxc6 {[%emt 0:00:08]} 8. Nge2 {[%emt 0:00:12]} Ne5 {[%emt 0:01:15]} 9. Bb3 {[%emt 0:01:17]} g6 {[%emt 0:00:44]} 10. d4 {[%emt 0:00:09]} Nc6 {[%emt 0:00:59]} 11. O-O {[%emt 0:00:22]} Bg7 {[%emt 0:00:16]} 12. Be3 {[%emt 0:00:37]} e6 {[%emt 0:00:38]} 13. Qd2 {[%emt 0:00:53]} O-O {[%emt 0:00:40]} 14. Rad1 {[%emt 0:00:19]} Nd5 {[%emt 0:02:37]} 15. Nxd5 {[%emt 0:00:35]} exd5 {[%emt 0:04:53]} 16. Nf4 {[%emt 0:00:18]} Be6 {[%emt 0:00:57]} 17. c3 {[%emt 0:01:09]} b5 {[%emt 0:00:59]} 18. Nd3 {[%emt 0:00:19]} a6 {[%emt 0:01:33]} 19. Nc5 {[%emt 0:01:19]} Re8 {[%emt 0:02:07]} 20. Rfe1 {[%emt 0:00:06]} Bf6 {[%emt 0:01:48]} 21. Bf4 {[%emt 0:00:23]} Ra7 {[%emt 0:01:54]} 22. Re2 {[%emt 0:00:16]} a5 {[%emt 0:02:18]} 23. Nxe6 {[%emt 0:03:53]} Rxe6 {[%emt 0:01:22]} 24. Rxe6 {[%emt 0:00:04]} fxe6 {[%emt 0:00:12]} 25. Qe2 {[%emt 0:00:03]} Re7 {[%emt 0:00:42]} 26. Qxb5 {[%emt 0:00:05]} Qd7 {[%emt 0:01:03]} 27. Ba4 {[%emt 0:00:08]} e5 {[%emt 0:13:41]} 28. Bg3 {[%emt 0:00:05]} Re6 {[%emt 0:00:32]} 29. dxe5 {[%emt 0:00:12]} Bd8 {[%emt 0:01:26]} 30. Rxd5 {[%emt 0:00:18]} Qc8 {[%emt 0:04:45]} 31. Rd6 {[%emt 0:00:12]} Ne7 {[%emt 0:01:42]} 32. Bb3 {[%emt 0:00:23]} Qa8 {[%emt 0:06:33]} 33. Bxe6+ {[%emt 0:00:43]} Kg7 {[%emt 0:00:22]} 34. Bb3 {[%emt 0:00:27]} Qa7+ {[%emt 0:01:37]} 35. Bf2 {[%emt 0:00:08]} Qc7 {[%emt 0:00:18]} 36. Rd7 {[%emt 0:00:14]} Qc8 {[%emt 0:00:37]} 37. Qd5 {[%emt 0:00:04]} Kh6 {[%emt 0:02:00]} 38. Be3+ {[%emt 0:00:05]} g5 {[%emt 0:00:36]} 39. Bxg5+ {[%emt 0:00:38]} Kxg5 {[%emt 0:01:02]} 40. Qd2+ {[%emt 0:00:04]} Kf5 {[%emt 0:01:24]} 41. g4+ {[%emt 0:00:05]} Kxe5 {[%emt 0:00:28]} 42. Qd4# {[%emt 0:00:04]} 1/2-1/2

[Event "10th Sharjah Cup Women 2020"]
[Site "Sharjah"]
[Date "2020.01.04"]
[Round "1.15"]
[White "alyazia Humaid alhasani"]
[Black "Nguyen, Thi Mai Hung"]
[Result "0-1"]
[ECO "C02"]
[WhiteElo "1119"]
[BlackElo "2254"]
[Annotator "ChessBase"]
[PlyCount "50"]
[EventDate "2020.01.04"]
[EventType "swiss"]
[EventCountry "UAE"]
[SourceTitle "playchess.com"]
[Source "ChessBase"]
[SourceQuality "1"]
[TimeControl "5400+30"]

1. e4 {[%emt 0:00:00]} e6 {[%emt 0:00:00]} 2. d4 {[%emt 0:01:10]} d5 {[%emt 0:00:01]} 3. e5 {[%emt 0:00:28]} c5 {[%emt 0:00:18]} 4. c3 {[%emt 0:00:57]} Qb6 {[%emt 0:03:29]} 5. Nf3 {[%emt 0:04:33]} Nc6 {[%emt 0:00:11]} 6. b3 {[%emt 0:08:39]} cxd4 {[%emt 0:01:26]} 7. cxd4 {[%emt 0:03:37]} Bb4+ {[%emt 0:00:51]} 8. Bd2 {[%emt 0:05:20]} Nxd4 {[%emt 0:07:25]} 9. Bxb4 {[%emt 0:03:52]} Qxb4+ {[%emt 0:00:35]} 10. Nbd2 {[%emt 0:02:26]} Bd7 {[%emt 0:03:04]} 11. Be2 {[%emt 0:06:55]} Ne7 {[%emt 0:01:47]} 12. O-O {[%emt 0:01:42]} Nxe2+ {[%emt 0:00:21]} 13. Qxe2 {[%emt 0:00:11]} Bb5 {[%emt 0:00:06]} 14. Qd1 {[%emt 0:03:29]} Bxf1 {[%emt 0:00:09]} 15. Nxf1 {[%emt 0:00:31]} O-O {[%emt 0:00:11]} 16. Ng3 {[%emt 0:00:32]} Ng6 {[%emt 0:01:13]} 17. Qd3 {[%emt 0:02:35]} Rac8 {[%emt 0:00:19]} 18. Ne2 {[%emt 0:02:06]} Rfd8 {[%emt 0:04:54]} 19. h4 {[%emt 0:02:26]} Qe4 {[%emt 0:04:23]} 20. Qxe4 {[%emt 0:01:23]} dxe4 {[%emt 0:00:04]} 21. Ng5 {[%emt 0:00:53]} Rc2 {[%emt 0:00:26]} 22. Ng3 {[%emt 0:01:19]} e3 {[%emt 0:00:12]} 23. fxe3 {[%emt 0:01:45]} Nxh4 {[%emt 0:02:23]} 24. Rf1 {[%emt 0:01:23]} Rxg2+ {[%emt 0:00:18]} 25. Kh1 {[%emt 0:00:11]} Rxg3 {[%emt 0:00:06]} 0-1

[Event "10th Sharjah Cup Women 2020"]
[Site "Sharjah"]
[Date "2020.01.04"]
[Round "1.16"]
[White "Smirnova, Ekaterina"]
[Black "Isra shams Eldien"]
[Result "1-0"]
[ECO "D25"]
[WhiteElo "2249"]
[BlackElo "1108"]
[Annotator "ChessBase"]
[PlyCount "47"]
[EventDate "2020.01.04"]
[EventType "swiss"]
[EventCountry "UAE"]
[SourceTitle "playchess.com"]
[Source "ChessBase"]
[SourceQuality "1"]
[TimeControl "5400+30"]

1. d4 {[%emt 0:00:00]} d5 {[%emt 0:00:00]} 2. c4 {[%emt 0:00:00]} dxc4 {[%emt 0:00:23]} 3. e3 {[%emt 0:00:00]} Be6 {[%emt 0:01:03]} 4. Nf3 {[%emt 0:00:42]} Nf6 {[%emt 0:00:21]} 5. Nc3 {[%emt 0:00:51]} g6 {[%emt 0:01:25]} 6. Ng5 {[%emt 0:00:49]} Qd7 {[%emt 0:01:15]} 7. Nxe6 {[%emt 0:03:09]} Qxe6 {[%emt 0:00:42]} 8. d5 {[%emt 0:00:44]} Qa6 {[%emt 0:04:26]} 9. Qd4 {[%emt 0:00:54]} b5 {[%emt 0:01:58]} 10. Be2 {[%emt 0:06:02]} Bg7 {[%emt 0:00:21]} 11. O-O {[%emt 0:00:40]} O-O {[%emt 0:00:29]} 12. e4 {[%emt 0:00:48]} Nxe4 {[%emt 0:01:35]} 13. Qxe4 {[%emt 0:00:21]} c6 {[%emt 0:02:54]} 14. Be3 {[%emt 0:00:38]} cxd5 {[%emt 0:05:05]} 15. Nxd5 {[%emt 0:00:45]} Nc6 {[%emt 0:00:49]} 16. Nc7 {[%emt 0:00:21]} Qa5 {[%emt 0:01:37]} 17. Nxa8 {[%emt 0:00:10]} Rxa8 {[%emt 0:00:06]} 18. Qxc6 {[%emt 0:00:05]} Qd8 {[%emt 0:01:21]} 19. Rad1 {[%emt 0:00:10]} Qf8 {[%emt 0:00:36]} 20. Qxb5 {[%emt 0:00:08]} Rb8 {[%emt 0:00:40]} 21. Qxc4 {[%emt 0:00:08]} Rxb2 {[%emt 0:00:34]} 22. Qc7 {[%emt 0:00:12]} Rxa2 {[%emt 0:00:33]} 23. Bc4 {[%emt 0:00:17]} Rc2 {[%emt 0:00:49]} 24. Rd8 {[%emt 0:00:07]} 1-0

[Event "10th Sharjah Cup Women 2020"]
[Site "Sharjah"]
[Date "2020.01.04"]
[Round "1.17"]
[White "Kaushal, Khushi"]
[Black "Bykova, Anastasia"]
[Result "0-1"]
[ECO "B12"]
[WhiteElo "1105"]
[BlackElo "2247"]
[Annotator "ChessBase"]
[PlyCount "44"]
[EventDate "2020.01.04"]
[EventType "swiss"]
[EventCountry "UAE"]
[SourceTitle "playchess.com"]
[Source "ChessBase"]
[SourceQuality "1"]
[TimeControl "5400+30"]

1. e4 c6 2. d4 d5 3. e5 c5 4. dxc5 Nc6 5. Bb5 e6 6. Be3 Qc7 7. Nf3 Nge7 8. c4 Bd7 9. O-O dxc4 10. Bxc4 Nf5 11. Re1 Nxe3 12. Rxe3 Bxc5 13. Re2 O-O-O 14. a3 Kb8 15. b4 Bb6 16. Nbd2 Nd4 17. Nxd4 Bxd4 18. Rc1 Bb2 19. Rc2 Ba4 20. Qb1 Bxc2 21. Qxb2 Bd3 22. Bxd3 Rxd3 0-1

[Event "10th Sharjah Cup Women 2020"]
[Site "Sharjah"]
[Date "2020.01.04"]
[Round "1.18"]
[White "Gevorgyan, Irina"]
[Black "Mouza Nasser AlShamsi"]
[Result "1-0"]
[ECO "A55"]
[WhiteElo "2216"]
[BlackElo "1079"]
[Annotator "ChessBase"]
[PlyCount "85"]
[EventDate "2020.01.04"]
[EventType "swiss"]
[EventCountry "UAE"]
[SourceTitle "playchess.com"]
[Source "ChessBase"]
[SourceQuality "1"]
[TimeControl "5400+30"]

1. Nf3 {[%emt 0:00:00]} d6 {[%emt 0:00:00]} 2. d4 {[%emt 0:00:00]} Nf6 {[%emt 0:00:23]} 3. c4 {[%emt 0:00:57]} Nbd7 {[%emt 0:00:47]} 4. Nc3 {[%emt 0:00:23]} e5 {[%emt 0:00:29]} 5. e4 {[%emt 0:00:46]} Be7 {[%emt 0:00:43]} 6. Be2 {[%emt 0:00:07]} c6 {[%emt 0:01:47]} 7. O-O {[%emt 0:01:01]} O-O {[%emt 0:00:10]} 8. Re1 {[%emt 0:03:06]} Qc7 {[%emt 0:01:13]} 9. Bf1 {[%emt 0:02:48]} Re8 {[%emt 0:02:50]} 10. h3 {[%emt 0:10:02]} a6 {[%emt 0:06:11]} 11. a3 {[%emt 0:02:22]} b5 {[%emt 0:04:51]} 12. d5 {[%emt 0:03:51]} bxc4 {[%emt 0:03:06]} 13. Bxc4 {[%emt 0:04:44]} h6 {[%emt 0:03:41]} 14. dxc6 {[%emt 0:00:49]} Qxc6 {[%emt 0:01:04]} 15. Qb3 {[%emt 0:04:51]} Rf8 {[%emt 0:01:32]} 16. Be3 {[%emt 0:09:25]} Rb8 {[%emt 0:02:32]} 17. Qa2 {[%emt 0:00:12]} Bb7 {[%emt 0:01:12]} 18. Nd5 {[%emt 0:15:51]} Nxd5 {[%emt 0:00:43]} 19. exd5 {[%emt 0:00:19]} Qc7 {[%emt 0:00:41]} 20. Rac1 {[%emt 0:00:28]} Qd8 {[%emt 0:00:32]} 21. b4 {[%emt 0:01:20]} Re8 {[%emt 0:00:49]} 22. Bb3 {[%emt 0:03:54]} Rc8 {[%emt 0:01:06]} 23. Ba4 {[%emt 0:01:09]} Rxc1 {[%emt 0:02:34]} 24. Rxc1 {[%emt 0:00:14]} Bf8 {[%emt 0:01:24]} 25. Bc6 {[%emt 0:01:43]} Bxc6 {[%emt 0:00:48]} 26. dxc6 {[%emt 0:06:22]} Nf6 {[%emt 0:00:33]} 27. Qe2 {[%emt 0:01:41]} Qc8 {[%emt 0:00:45]} 28. a4 {[%emt 0:00:13]} d5 {[%emt 0:00:27]} 29. b5 {[%emt 0:00:44]} axb5 {[%emt 0:00:21]} 30. axb5 {[%emt 0:00:03]} d4 {[%emt 0:00:32]} 31. Bd2 {[%emt 0:00:25]} Bd6 {[%emt 0:00:54]} 32. b6 {[%emt 0:00:19]} Qb8 {[%emt 0:01:39]} 33. Qa6 {[%emt 0:04:11]} Nd5 {[%emt 0:01:11]} 34. Ba5 {[%emt 0:05:16]} Qa8 {[%emt 0:01:27]} 35. Qxa8 {[%emt 0:01:32]} Rxa8 {[%emt 0:00:06]} 36. c7 {[%emt 0:00:16]} Rc8 {[%emt 0:00:26]} 37. b7 {[%emt 0:00:24]} Re8 {[%emt 0:00:33]} 38. c8=Q {[%emt 0:00:10]} Rxc8 {[%emt 0:00:12]} 39. bxc8=Q+ {[%emt 0:00:11]} Kh7 {[%emt 0:00:34]} 40. Qf5+ {[%emt 0:00:07]} g6 {[%emt 0:00:15]} 41. Qxf7+ {[%emt 0:00:08]} Kh8 {[%emt 0:00:09]} 42. Rc8+ {[%emt 0:00:05]} Bf8 {[%emt 0:00:06]} 43. Rxf8# 1-0